[Event "Titled Tuesday Blitz May 10 Late 2022"]
[White "Hnydiuk, Aleksander"]
[Black "Bernal Moro, Luis Javier"]
[WhiteFideId "1109057"]
[BlackFideId "2200236"]
[WhiteElo "2374"]
[BlackElo "2373"]
[Result "1-0"]
[Round "06"]
[TimeControl "180+1"]
[Date "2022.05.11"]
[WhiteClock "0:01:15"]
[BlackClock "0:00:27"]

1. g3 {[%clk 0:03:00]}  c5 {[%clk 0:02:55]} 2. Bg2 {[%clk 0:02:59]}  Nc6 {[%clk 0:02:54]} 3. Nf3 {[%clk 0:02:59]}  e5 {[%clk 0:02:53]} 4. c4 {[%clk 0:02:45]}  g6 {[%clk 0:02:51]} 5. O-O {[%clk 0:02:43]}  Bg7 {[%clk 0:02:51]} 6. Nc3 {[%clk 0:02:43]}  d6 {[%clk 0:02:51]} 7. e3 {[%clk 0:02:38]}  Nge7 {[%clk 0:02:48]} 8. d4 {[%clk 0:02:38]}  exd4 {[%clk 0:02:47]} 9. exd4 {[%clk 0:02:39]}  cxd4 {[%clk 0:02:25]} 10. Nb5 {[%clk 0:02:39]}  Bg4 {[%clk 0:02:22]} 11. Bf4 {[%clk 0:02:36]}  Nc8 {[%clk 0:02:09]} 12. Re1+ {[%clk 0:02:32]}  Kf8 {[%clk 0:02:08]} 13. Qd2 {[%clk 0:02:27]}  Bxf3 {[%clk 0:02:07]} 14. Bxf3 {[%clk 0:02:28]}  a6 {[%clk 0:02:06]} 15. Bxc6 {[%clk 0:02:28]}  bxc6 {[%clk 0:02:01]} 16. Nxd4 {[%clk 0:02:27]}  Qd7 {[%clk 0:02:00]} 17. Bh6 {[%clk 0:02:23]}  Ne7 {[%clk 0:01:47]} 18. Rad1 {[%clk 0:02:14]}  Rd8 {[%clk 0:01:33]} 19. Qf4 {[%clk 0:02:03]}  Kg8 {[%clk 0:00:59]} 20. Re2 {[%clk 0:01:59]}  Bxd4 {[%clk 0:00:51]} 21. Rxd4 {[%clk 0:01:42]}  Nf5 {[%clk 0:00:50]} 22. Rde4 {[%clk 0:01:42]}  d5 {[%clk 0:00:32]} 23. cxd5 {[%clk 0:01:38]}  cxd5 {[%clk 0:00:32]} 24. Re5 {[%clk 0:01:27]}  d4 {[%clk 0:00:31]} 25. Rxf5 {[%clk 0:01:14]}  Qxf5 {[%clk 0:00:27]} 26. Qxd4 {[%clk 0:01:15]} 1-0


[Site "https://www.chess.com"]

[Event "Titled Tuesday Blitz May 10 Late 2022"]
[White "Janaszak, Dawid"]
[Black "Avalos Parra, Joao"]
[WhiteFideId "1119206"]
[BlackFideId "3402541"]
[WhiteElo "2199"]
[BlackElo "2173"]
[Result "1-0"]
[Round "06"]
[TimeControl "180+1"]
[Date "2022.05.11"]
[WhiteClock "0:00:54"]
[BlackClock "0:00:01"]

1. e4 {[%clk 0:03:00]}  c6 {[%clk 0:02:57]} 2. b3 {[%clk 0:02:54]}  d5 {[%clk 0:02:55]} 3. Bb2 {[%clk 0:02:54]}  dxe4 {[%clk 0:02:54]} 4. Nc3 {[%clk 0:02:54]}  Nf6 {[%clk 0:02:54]} 5. Qe2 {[%clk 0:02:55]}  Bf5 {[%clk 0:02:52]} 6. O-O-O {[%clk 0:02:51]}  e6 {[%clk 0:02:51]} 7. h3 {[%clk 0:02:51]}  h5 {[%clk 0:02:42]} 8. f3 {[%clk 0:02:51]}  exf3 {[%clk 0:02:42]} 9. Nxf3 {[%clk 0:02:52]}  Nbd7 {[%clk 0:02:41]} 10. Kb1 {[%clk 0:02:48]}  Qc7 {[%clk 0:02:41]} 11. Nd4 {[%clk 0:02:47]}  Bg6 {[%clk 0:02:23]} 12. g3 {[%clk 0:02:35]}  O-O-O {[%clk 0:02:22]} 13. Bg2 {[%clk 0:02:35]}  Qxg3 {[%clk 0:02:16]} 14. Bxc6 {[%clk 0:02:30]}  Nc5 {[%clk 0:02:10]} 15. Na4 {[%clk 0:02:15]}  bxc6 {[%clk 0:01:15]} 16. Nxc5 {[%clk 0:02:15]}  Bxc5 {[%clk 0:01:14]} 17. Qa6+ {[%clk 0:02:14]}  Kc7 {[%clk 0:01:08]} 18. Qxc6+ {[%clk 0:02:10]}  Kb8 {[%clk 0:01:07]} 19. Qxc5 {[%clk 0:02:10]}  Qc7 {[%clk 0:01:00]} 20. Nc6+ {[%clk 0:02:05]}  Ka8 {[%clk 0:00:56]} 21. Be5 {[%clk 0:02:04]}  Qb7 {[%clk 0:00:25]} 22. Nxd8 {[%clk 0:02:00]}  Rxd8 {[%clk 0:00:26]} 23. d3 {[%clk 0:01:47]}  Rc8 {[%clk 0:00:14]} 24. Qf2 {[%clk 0:01:41]}  Nd5 {[%clk 0:00:13]} 25. Bxg7 {[%clk 0:01:35]}  f6 {[%clk 0:00:13]} 26. Bxf6 {[%clk 0:01:20]}  Rf8 {[%clk 0:00:13]} 27. Rhg1 {[%clk 0:01:09]}  Rxf6 {[%clk 0:00:12]} 28. Qd4 {[%clk 0:01:09]}  Qc7 {[%clk 0:00:11]} 29. c4 {[%clk 0:01:08]}  Rf4 {[%clk 0:00:06]} 30. Qh8+ {[%clk 0:01:07]}  Kb7 {[%clk 0:00:05]} 31. Rxg6 {[%clk 0:01:03]}  Nb4 {[%clk 0:00:04]} 32. Rg7 {[%clk 0:00:54]}  Rf7 {[%clk 0:00:01]} 33. Rdg1 {[%clk 0:00:54]} 1-0


[Site "https://www.chess.com"]

[Event "Titled Tuesday Blitz May 10 Late 2022"]
[White "Jones, Gawain C B"]
[Black "Bettalli, Francesco"]
[WhiteFideId "409561"]
[BlackFideId "2816453"]
[WhiteElo "2657"]
[BlackElo "2216"]
[Result "1-0"]
[Round "06"]
[TimeControl "180+1"]
[Date "2022.05.10"]
[WhiteClock "0:00:38"]
[BlackClock "0:00:17"]

1. Nf3 {[%clk 0:03:00]}  c5 {[%clk 0:02:59]} 2. g3 {[%clk 0:02:59]}  g6 {[%clk 0:02:59]} 3. c3 {[%clk 0:02:58]}  Bg7 {[%clk 0:02:58]} 4. e4 {[%clk 0:02:58]}  e6 {[%clk 0:02:48]} 5. d4 {[%clk 0:02:57]}  cxd4 {[%clk 0:02:49]} 6. cxd4 {[%clk 0:02:57]}  d5 {[%clk 0:02:49]} 7. e5 {[%clk 0:02:57]}  f6 {[%clk 0:02:49]} 8. Bg2 {[%clk 0:02:56]}  Nc6 {[%clk 0:02:48]} 9. Bf4 {[%clk 0:02:53]}  g5 {[%clk 0:02:43]} 10. exf6 {[%clk 0:02:52]}  Bxf6 {[%clk 0:02:43]} 11. Be5 {[%clk 0:02:36]}  g4 {[%clk 0:02:27]} 12. Nfd2 {[%clk 0:02:00]}  Bxe5 {[%clk 0:02:18]} 13. dxe5 {[%clk 0:02:00]}  Nxe5 {[%clk 0:02:19]} 14. O-O {[%clk 0:02:00]}  Nf6 {[%clk 0:02:17]} 15. f4 {[%clk 0:01:59]}  Qb6+ {[%clk 0:02:04]} 16. Kh1 {[%clk 0:01:59]}  Nd3 {[%clk 0:01:38]} 17. Qe2 {[%clk 0:01:59]}  Qa6 {[%clk 0:01:15]} 18. Na3 {[%clk 0:01:33]}  O-O {[%clk 0:01:12]} 19. Nc2 {[%clk 0:01:21]}  Bd7 {[%clk 0:01:10]} 20. Nd4 {[%clk 0:01:18]}  Nxb2 {[%clk 0:00:59]} 21. Qe5 {[%clk 0:01:18]}  Nd3 {[%clk 0:00:54]} 22. Qg5+ {[%clk 0:01:17]}  Kh8 {[%clk 0:00:54]} 23. N2b3 {[%clk 0:01:11]}  Rac8 {[%clk 0:00:48]} 24. Rad1 {[%clk 0:01:02]}  Nc5 {[%clk 0:00:43]} 25. Nxc5 {[%clk 0:00:56]}  Rxc5 {[%clk 0:00:44]} 26. Qe5 {[%clk 0:00:56]}  Kg8 {[%clk 0:00:43]} 27. f5 {[%clk 0:00:55]}  exf5 {[%clk 0:00:38]} 28. Qe7 {[%clk 0:00:44]}  Rcc8 {[%clk 0:00:23]} 29. Rxf5 {[%clk 0:00:38]}  Rf7 {[%clk 0:00:20]} 30. Rg5+ {[%clk 0:00:38]}  Kh8 {[%clk 0:00:17]} 31. Qxf7 {[%clk 0:00:38]} 1-0


[Site "https://www.chess.com"]

[Event "Titled Tuesday Blitz May 10 Late 2022"]
[White "Kanyamarala, Trisha"]
[Black "Wartiovaara, Oliver"]
[WhiteFideId "45004722"]
[BlackFideId "513024"]
[WhiteElo "2134"]
[BlackElo "1971"]
[Result "0-1"]
[Round "06"]
[TimeControl "180+1"]
[Date "2022.05.11"]
[WhiteClock "0:00:01"]
[BlackClock "0:00:01"]

1. c4 {[%clk 0:03:00]}  g6 {[%clk 0:02:59]} 2. Nc3 {[%clk 0:03:00]}  c5 {[%clk 0:02:55]} 3. Nf3 {[%clk 0:02:58]}  Bg7 {[%clk 0:02:54]} 4. g3 {[%clk 0:02:53]}  Nc6 {[%clk 0:02:54]} 5. Bg2 {[%clk 0:02:53]}  e6 {[%clk 0:02:49]} 6. O-O {[%clk 0:02:50]}  Nge7 {[%clk 0:02:47]} 7. d4 {[%clk 0:02:47]}  cxd4 {[%clk 0:02:37]} 8. Nb5 {[%clk 0:02:47]}  d5 {[%clk 0:02:38]} 9. cxd5 {[%clk 0:02:43]}  exd5 {[%clk 0:02:36]} 10. Bf4 {[%clk 0:02:42]}  O-O {[%clk 0:02:32]} 11. Nfxd4 {[%clk 0:02:27]}  a6 {[%clk 0:02:24]} 12. Nxc6 {[%clk 0:02:22]}  bxc6 {[%clk 0:02:20]} 13. Nd4 {[%clk 0:02:08]}  c5 {[%clk 0:02:04]} 14. Nb3 {[%clk 0:02:06]}  c4 {[%clk 0:01:49]} 15. Nd4 {[%clk 0:01:52]}  Qb6 {[%clk 0:01:45]} 16. Be3 {[%clk 0:01:48]}  Qf6 {[%clk 0:01:01]} 17. Rc1 {[%clk 0:01:30]}  Bb7 {[%clk 0:00:48]} 18. b3 {[%clk 0:01:15]}  cxb3 {[%clk 0:00:33]} 19. Nxb3 {[%clk 0:01:16]}  Nf5 {[%clk 0:00:27]} 20. Bc5 {[%clk 0:01:04]}  Rfd8 {[%clk 0:00:22]} 21. Na5 {[%clk 0:00:57]}  Bc8 {[%clk 0:00:18]} 22. Qb3 {[%clk 0:00:47]}  Be6 {[%clk 0:00:18]} 23. Nc6 {[%clk 0:00:38]}  Rdc8 {[%clk 0:00:16]} 24. Bb6 {[%clk 0:00:36]}  Bd7 {[%clk 0:00:12]} 25. Qxd5 {[%clk 0:00:25]}  Bxc6 {[%clk 0:00:06]} 26. Rxc6 {[%clk 0:00:25]}  Rxc6 {[%clk 0:00:04]} 27. Qxc6 {[%clk 0:00:26]}  Qxc6 {[%clk 0:00:05]} 28. Bxc6 {[%clk 0:00:26]}  Rb8 {[%clk 0:00:04]} 29. Ba5 {[%clk 0:00:23]}  Rb2 {[%clk 0:00:04]} 30. Bd5 {[%clk 0:00:20]}  Nd4 {[%clk 0:00:04]} 31. Bc7 {[%clk 0:00:10]}  Nxe2+ {[%clk 0:00:03]} 32. Kg2 {[%clk 0:00:11]}  Nc3 {[%clk 0:00:03]} 33. Bb3 {[%clk 0:00:10]}  Nxa2 {[%clk 0:00:03]} 34. Bd5 {[%clk 0:00:08]}  Nc3 {[%clk 0:00:02]} 35. Bc4 {[%clk 0:00:04]}  Bf8 {[%clk 0:00:02]} 36. Rc1 {[%clk 0:00:03]}  Nb5 {[%clk 0:00:02]} 37. Bd5 {[%clk 0:00:03]}  Nd6 {[%clk 0:00:02]} 38. Ba5 {[%clk 0:00:01]}  Nb5 {[%clk 0:00:02]} 39. Bc3 {[%clk 0:00:01]}  Nd6 {[%clk 0:00:02]} 40. Be5 {[%clk 0:00:01]}  Rb5 {[%clk 0:00:01]} 41. Bd4 {[%clk 0:00:01]}  Rxd5 {[%clk 0:00:01]} 0-1


[Site "https://www.chess.com"]

[Event "Titled Tuesday Blitz May 10 Late 2022"]
[White "Kate1606"]
[Black "Piliczewski, Bogusz"]
[BlackFideId "1104144"]
[WhiteElo "2064"]
[BlackElo "1896"]
[Result "1-0"]
[Round "06"]
[TimeControl "180+1"]
[Date "2022.05.11"]
[WhiteClock "0:00:02"]
[BlackClock "0:00:03"]

1. e4 {[%clk 0:02:56]}  c6 {[%clk 0:02:31]} 2. d4 {[%clk 0:02:52]}  d5 {[%clk 0:02:30]} 3. exd5 {[%clk 0:02:44]}  cxd5 {[%clk 0:02:30]} 4. Bd3 {[%clk 0:02:41]}  Nc6 {[%clk 0:02:30]} 5. c3 {[%clk 0:02:42]}  Nf6 {[%clk 0:02:29]} 6. Bf4 {[%clk 0:02:42]}  Bg4 {[%clk 0:02:28]} 7. Qb3 {[%clk 0:02:42]}  Qd7 {[%clk 0:02:09]} 8. Nd2 {[%clk 0:02:41]}  e6 {[%clk 0:02:08]} 9. Ngf3 {[%clk 0:02:35]}  Bxf3 {[%clk 0:02:02]} 10. Nxf3 {[%clk 0:02:35]}  Be7 {[%clk 0:01:59]} 11. Ne5 {[%clk 0:02:33]}  Qc8 {[%clk 0:01:55]} 12. O-O {[%clk 0:02:25]}  O-O {[%clk 0:01:38]} 13. Rac1 {[%clk 0:02:00]}  a6 {[%clk 0:01:34]} 14. Qc2 {[%clk 0:01:42]}  b5 {[%clk 0:01:27]} 15. a3 {[%clk 0:01:38]}  h6 {[%clk 0:01:18]} 16. Qe2 {[%clk 0:01:10]}  Nd7 {[%clk 0:01:06]} 17. Ng4 {[%clk 0:01:00]}  Bg5 {[%clk 0:00:56]} 18. Bxg5 {[%clk 0:00:50]}  hxg5 {[%clk 0:00:55]} 19. Qe3 {[%clk 0:00:39]}  Qd8 {[%clk 0:00:50]} 20. Qh3 {[%clk 0:00:38]}  g6 {[%clk 0:00:44]} 21. Qh6 {[%clk 0:00:25]}  Nf6 {[%clk 0:00:24]} 22. Bxg6 {[%clk 0:00:12]}  fxg6 {[%clk 0:00:17]} 23. Qxg6+ {[%clk 0:00:13]}  Kh8 {[%clk 0:00:16]} 24. Qh6+ {[%clk 0:00:07]}  Nh7 {[%clk 0:00:13]} 25. Rce1 {[%clk 0:00:05]}  Qd7 {[%clk 0:00:10]} 26. Rxe6 {[%clk 0:00:02]}  Qg7 {[%clk 0:00:09]} 27. Qh3 {[%clk 0:00:01]}  Nd8 {[%clk 0:00:04]} 28. Rh6 {[%clk 0:00:02]}  Ra7 {[%clk 0:00:03]} 29. Ne5 {[%clk 0:00:02]} 1-0


[Site "https://www.chess.com"]

[Event "Titled Tuesday Blitz May 10 Late 2022"]
[White "Khripachenko, Alexander"]
[Black "Holt, Conrad"]
[WhiteFideId "54184975"]
[BlackFideId "2034387"]
[WhiteElo "2138"]
[BlackElo "2586"]
[Result "0-1"]
[Round "06"]
[TimeControl "180+1"]
[Date "2022.05.10"]
[WhiteClock "0:00:11"]
[BlackClock "0:01:03"]

1. e4 {[%clk 0:03:00]}  e6 {[%clk 0:03:00]} 2. d4 {[%clk 0:03:00]}  d5 {[%clk 0:03:00]} 3. Nd2 {[%clk 0:03:01]}  c5 {[%clk 0:03:00]} 4. exd5 {[%clk 0:03:00]}  Qxd5 {[%clk 0:03:00]} 5. Ngf3 {[%clk 0:03:01]}  cxd4 {[%clk 0:03:00]} 6. Bc4 {[%clk 0:03:02]}  Qd6 {[%clk 0:03:00]} 7. O-O {[%clk 0:03:03]}  Nf6 {[%clk 0:03:01]} 8. Nb3 {[%clk 0:03:03]}  Nc6 {[%clk 0:03:01]} 9. Nbxd4 {[%clk 0:03:04]}  Nxd4 {[%clk 0:03:02]} 10. Nxd4 {[%clk 0:03:05]}  a6 {[%clk 0:03:02]} 11. Bb3 {[%clk 0:03:05]}  Be7 {[%clk 0:03:02]} 12. Re1 {[%clk 0:03:05]}  O-O {[%clk 0:03:02]} 13. c3 {[%clk 0:03:05]}  Bd7 {[%clk 0:02:33]} 14. Qf3 {[%clk 0:03:05]}  Qb6 {[%clk 0:02:31]} 15. Be3 {[%clk 0:03:05]}  Bc5 {[%clk 0:02:27]} 16. Bg5 {[%clk 0:02:55]}  Bxd4 {[%clk 0:02:23]} 17. cxd4 {[%clk 0:02:56]}  Bc6 {[%clk 0:02:24]} 18. Qf4 {[%clk 0:02:37]}  Nd5 {[%clk 0:02:21]} 19. Qg4 {[%clk 0:02:37]}  Rfc8 {[%clk 0:02:01]} 20. Bxd5 {[%clk 0:02:11]}  Bxd5 {[%clk 0:02:01]} 21. Bf6 {[%clk 0:02:09]}  g6 {[%clk 0:02:01]} 22. Qf4 {[%clk 0:01:48]}  Qb4 {[%clk 0:01:48]} 23. Re3 {[%clk 0:01:40]}  Rc2 {[%clk 0:01:25]} 24. Rh3 {[%clk 0:01:19]}  Qd2 {[%clk 0:01:20]} 25. Qxd2 {[%clk 0:00:48]}  Rxd2 {[%clk 0:01:18]} 26. b3 {[%clk 0:00:49]}  Rc8 {[%clk 0:01:17]} 27. Re3 {[%clk 0:00:36]}  Rxa2 {[%clk 0:01:12]} 28. Rae1 {[%clk 0:00:23]}  Rcc2 {[%clk 0:01:11]} 29. Rf1 {[%clk 0:00:20]}  Rab2 {[%clk 0:01:07]} 30. h4 {[%clk 0:00:17]}  Rxb3 {[%clk 0:01:04]} 31. Rxb3 {[%clk 0:00:16]}  Bxb3 {[%clk 0:01:05]} 32. Rb1 {[%clk 0:00:16]}  Bd5 {[%clk 0:01:05]} 33. h5 {[%clk 0:00:15]}  gxh5 {[%clk 0:01:04]} 34. Rb6 {[%clk 0:00:15]}  h6 {[%clk 0:01:04]} 35. Rd6 {[%clk 0:00:15]}  Kh7 {[%clk 0:01:03]} 36. Rd8 {[%clk 0:00:11]}  Kg6 {[%clk 0:01:03]} 37. Be5 {[%clk 0:00:11]}  f6 {[%clk 0:01:03]} 38. Rg8+ {[%clk 0:00:11]}  Kf7 {[%clk 0:01:03]} 0-1


[Site "https://www.chess.com"]

[Event "Titled Tuesday Blitz May 10 Late 2022"]
[White "Kim, Sergey"]
[Black "Koellner, Ruben Gideon"]
[WhiteFideId "13700570"]
[BlackFideId "12993093"]
[WhiteElo "2477"]
[BlackElo "2613"]
[Result "0-1"]
[Round "06"]
[TimeControl "180+1"]
[Date "2022.05.11"]
[WhiteClock "0:00:50"]
[BlackClock "0:01:48"]

1. d4 {[%clk 0:03:00]}  d6 {[%clk 0:03:00]} 2. c4 {[%clk 0:03:01]}  e5 {[%clk 0:03:00]} 3. Nf3 {[%clk 0:03:00]}  e4 {[%clk 0:02:59]} 4. Ng5 {[%clk 0:03:00]}  f5 {[%clk 0:03:00]} 5. h4 {[%clk 0:02:59]}  Be7 {[%clk 0:02:50]} 6. Nc3 {[%clk 0:02:59]}  h6 {[%clk 0:02:45]} 7. Nh3 {[%clk 0:02:58]}  Nf6 {[%clk 0:02:45]} 8. Nf4 {[%clk 0:02:58]}  O-O {[%clk 0:02:45]} 9. h5 {[%clk 0:02:58]}  Re8 {[%clk 0:02:46]} 10. e3 {[%clk 0:02:58]}  c6 {[%clk 0:02:45]} 11. b3 {[%clk 0:02:51]}  Na6 {[%clk 0:02:45]} 12. Bb2 {[%clk 0:02:51]}  Nc7 {[%clk 0:02:46]} 13. Be2 {[%clk 0:02:50]}  d5 {[%clk 0:02:45]} 14. Qc2 {[%clk 0:02:44]}  Ne6 {[%clk 0:02:45]} 15. g3 {[%clk 0:02:43]}  Nxf4 {[%clk 0:02:44]} 16. gxf4 {[%clk 0:02:42]}  Be6 {[%clk 0:02:45]} 17. O-O-O {[%clk 0:02:18]}  Kh8 {[%clk 0:02:33]} 18. f3 {[%clk 0:02:09]}  exf3 {[%clk 0:02:26]} 19. Bxf3 {[%clk 0:02:08]}  Ne4 {[%clk 0:02:26]} 20. Nxe4 {[%clk 0:02:03]}  fxe4 {[%clk 0:02:27]} 21. Be2 {[%clk 0:02:04]}  Rc8 {[%clk 0:02:25]} 22. Rhg1 {[%clk 0:01:58]}  Bf6 {[%clk 0:02:25]} 23. Kb1 {[%clk 0:01:50]}  Qe7 {[%clk 0:02:15]} 24. Bg4 {[%clk 0:01:43]}  Bxg4 {[%clk 0:02:08]} 25. Rxg4 {[%clk 0:01:42]}  b5 {[%clk 0:02:08]} 26. Ka1 {[%clk 0:01:24]}  bxc4 {[%clk 0:02:04]} 27. bxc4 {[%clk 0:01:24]}  Qb4 {[%clk 0:02:03]} 28. Qb3 {[%clk 0:01:09]}  Qxc4 {[%clk 0:01:47]} 29. Qxc4 {[%clk 0:01:09]}  dxc4 {[%clk 0:01:48]} 30. Rc1 {[%clk 0:01:02]}  c5 {[%clk 0:01:48]} 31. d5 {[%clk 0:00:51]}  Bxb2+ {[%clk 0:01:48]} 32. Kxb2 {[%clk 0:00:51]}  Rcd8 {[%clk 0:01:49]} 33. Rxc4 {[%clk 0:00:50]}  Rxd5 {[%clk 0:01:48]} 34. Rxc5 {[%clk 0:00:50]}  Rxc5 {[%clk 0:01:48]} 0-1


[Site "https://www.chess.com"]

[Event "Titled Tuesday Blitz May 10 Late 2022"]
[White "Ladan, Nicholas"]
[Black "Petrovic, Aleksa"]
[WhiteFideId "30918855"]
[BlackFideId "967629"]
[WhiteElo "2167"]
[BlackElo "2144"]
[Result "1-0"]
[Round "06"]
[TimeControl "180+1"]
[Date "2022.05.11"]
[WhiteClock "0:00:22"]
[BlackClock "0:00:01"]

1. d4 {[%clk 0:03:00]}  Nf6 {[%clk 0:02:58]} 2. c4 {[%clk 0:02:58]}  e6 {[%clk 0:02:59]} 3. g3 {[%clk 0:02:58]}  d5 {[%clk 0:02:54]} 4. Nf3 {[%clk 0:02:57]}  Bb4+ {[%clk 0:02:47]} 5. Bd2 {[%clk 0:02:57]}  Be7 {[%clk 0:02:48]} 6. Bg2 {[%clk 0:02:56]}  O-O {[%clk 0:02:48]} 7. O-O {[%clk 0:02:56]}  c6 {[%clk 0:02:46]} 8. Qc2 {[%clk 0:02:55]}  Ne4 {[%clk 0:02:36]} 9. Bf4 {[%clk 0:02:47]}  Nd7 {[%clk 0:02:25]} 10. Nc3 {[%clk 0:02:42]}  f5 {[%clk 0:02:19]} 11. Ne5 {[%clk 0:02:38]}  Nxe5 {[%clk 0:02:15]} 12. Bxe5 {[%clk 0:02:38]}  Bd7 {[%clk 0:02:06]} 13. Nxe4 {[%clk 0:02:38]}  fxe4 {[%clk 0:02:04]} 14. f3 {[%clk 0:02:38]}  exf3 {[%clk 0:01:50]} 15. Bxf3 {[%clk 0:02:35]}  Bf6 {[%clk 0:01:25]} 16. Bxf6 {[%clk 0:02:23]}  Qxf6 {[%clk 0:01:24]} 17. Qc3 {[%clk 0:02:19]}  Qg5 {[%clk 0:01:08]} 18. Bg2 {[%clk 0:02:08]}  h6 {[%clk 0:00:47]} 19. c5 {[%clk 0:02:00]}  Rxf1+ {[%clk 0:00:39]} 20. Rxf1 {[%clk 0:01:58]}  Be8 {[%clk 0:00:39]} 21. h4 {[%clk 0:01:49]}  Qg4 {[%clk 0:00:29]} 22. Qe3 {[%clk 0:01:46]}  Bh5 {[%clk 0:00:27]} 23. Rf3 {[%clk 0:01:24]}  Rf8 {[%clk 0:00:27]} 24. Kh2 {[%clk 0:01:17]}  Qg6 {[%clk 0:00:11]} 25. Rxf8+ {[%clk 0:01:03]}  Kxf8 {[%clk 0:00:12]} 26. Bh3 {[%clk 0:00:57]}  Qc2 {[%clk 0:00:04]} 27. Qf4+ {[%clk 0:00:41]}  Bf7 {[%clk 0:00:04]} 28. Qb8+ {[%clk 0:00:37]}  Be8 {[%clk 0:00:03]} 29. Qd6+ {[%clk 0:00:36]}  Kg8 {[%clk 0:00:01]} 30. Bxe6+ {[%clk 0:00:31]}  Kh7 {[%clk 0:00:01]} 31. Qe5 {[%clk 0:00:29]}  Bg6 {[%clk 0:00:01]} 32. h5 {[%clk 0:00:25]}  Be4 {[%clk 0:00:01]} 33. Kh3 {[%clk 0:00:22]} 1-0


[Site "https://www.chess.com"]

[Event "Titled Tuesday Blitz May 10 Late 2022"]
[White "Le Goff, Ronan"]
[Black "Kujawski, Adam"]
[WhiteFideId "612073"]
[BlackFideId "1100920"]
[WhiteElo "2276"]
[BlackElo "1982"]
[Result "0-1"]
[Round "06"]
[TimeControl "180+1"]
[Date "2022.05.11"]
[WhiteClock "0:00:52"]
[BlackClock "0:00:11"]

1. d4 {[%clk 0:03:00]}  Nf6 {[%clk 0:02:59]} 2. c4 {[%clk 0:03:01]}  e6 {[%clk 0:02:59]} 3. Nf3 {[%clk 0:03:00]}  c5 {[%clk 0:02:59]} 4. e3 {[%clk 0:02:59]}  b6 {[%clk 0:02:55]} 5. Nc3 {[%clk 0:02:59]}  Bb7 {[%clk 0:02:55]} 6. d5 {[%clk 0:02:58]}  d6 {[%clk 0:02:54]} 7. e4 {[%clk 0:02:58]}  e5 {[%clk 0:02:54]} 8. h3 {[%clk 0:02:58]}  Be7 {[%clk 0:02:54]} 9. Be3 {[%clk 0:02:58]}  O-O {[%clk 0:02:54]} 10. Bd3 {[%clk 0:02:58]}  Ne8 {[%clk 0:02:54]} 11. O-O {[%clk 0:02:58]}  g6 {[%clk 0:02:53]} 12. Nh2 {[%clk 0:02:57]}  f5 {[%clk 0:02:52]} 13. exf5 {[%clk 0:02:57]}  gxf5 {[%clk 0:02:52]} 14. f4 {[%clk 0:02:58]}  e4 {[%clk 0:02:52]} 15. Be2 {[%clk 0:02:58]}  Nd7 {[%clk 0:02:42]} 16. g4 {[%clk 0:02:57]}  Ng7 {[%clk 0:02:39]} 17. g5 {[%clk 0:02:54]}  a6 {[%clk 0:02:28]} 18. a4 {[%clk 0:02:45]}  h5 {[%clk 0:01:38]} 19. gxh6 {[%clk 0:02:41]}  Ne8 {[%clk 0:01:36]} 20. Kh1 {[%clk 0:02:42]}  Kh7 {[%clk 0:01:32]} 21. Rg1 {[%clk 0:02:40]}  Ndf6 {[%clk 0:01:29]} 22. Bh5 {[%clk 0:02:30]}  Rg8 {[%clk 0:01:21]} 23. Qe2 {[%clk 0:02:28]}  Bf8 {[%clk 0:00:52]} 24. Rxg8 {[%clk 0:02:21]}  Nxg8 {[%clk 0:00:50]} 25. Rg1 {[%clk 0:02:20]}  Bxh6 {[%clk 0:00:45]} 26. Bf7 {[%clk 0:02:16]}  Nef6 {[%clk 0:00:35]} 27. Qg2 {[%clk 0:02:15]}  Qf8 {[%clk 0:00:27]} 28. Qg6+ {[%clk 0:02:13]}  Kh8 {[%clk 0:00:28]} 29. Be6 {[%clk 0:02:08]}  Ne7 {[%clk 0:00:21]} 30. Qg3 {[%clk 0:02:04]}  Bc8 {[%clk 0:00:21]} 31. Qh4 {[%clk 0:01:58]}  Bxe6 {[%clk 0:00:18]} 32. dxe6 {[%clk 0:01:59]}  Ra7 {[%clk 0:00:17]} 33. Nf1 {[%clk 0:01:53]}  Kh7 {[%clk 0:00:14]} 34. Ng3 {[%clk 0:01:52]}  Ng6 {[%clk 0:00:14]} 35. Nxf5 {[%clk 0:01:29]}  Nxh4 {[%clk 0:00:13]} 36. Nxh4 {[%clk 0:01:30]}  Nh5 {[%clk 0:00:12]} 37. Nd5 {[%clk 0:01:28]}  Rg7 {[%clk 0:00:10]} 38. Rxg7+ {[%clk 0:01:20]}  Nxg7 {[%clk 0:00:10]} 39. e7 {[%clk 0:01:19]}  Qf7 {[%clk 0:00:09]} 40. Kg2 {[%clk 0:01:09]}  Ne8 {[%clk 0:00:09]} 41. Kg3 {[%clk 0:01:06]}  Bg7 {[%clk 0:00:09]} 42. f5 {[%clk 0:01:02]}  Nf6 {[%clk 0:00:09]} 43. Ng6 {[%clk 0:00:52]}  Nxd5 {[%clk 0:00:09]} 44. cxd5 {[%clk 0:00:53]}  Bf6 {[%clk 0:00:09]} 45. Nf8+ {[%clk 0:00:52]}  Kg8 {[%clk 0:00:09]} 46. Ng6 {[%clk 0:00:47]}  Bxe7 {[%clk 0:00:09]} 47. Kg4 {[%clk 0:00:48]}  Bf6 {[%clk 0:00:09]} 48. b3 {[%clk 0:00:47]}  Bd4 {[%clk 0:00:08]} 49. Bf4 {[%clk 0:00:47]}  e3 {[%clk 0:00:08]} 50. Bxd6 {[%clk 0:00:45]}  e2 {[%clk 0:00:08]} 51. Bg3 {[%clk 0:00:46]}  Qf6 {[%clk 0:00:07]} 52. d6 {[%clk 0:00:44]}  Bc3 {[%clk 0:00:07]} 53. d7 {[%clk 0:00:44]}  e1=Q {[%clk 0:00:07]} 54. Bxe1 {[%clk 0:00:44]}  Bxe1 {[%clk 0:00:08]} 55. h4 {[%clk 0:00:45]}  Kf7 {[%clk 0:00:07]} 56. h5 {[%clk 0:00:45]}  Qd8 {[%clk 0:00:07]} 57. h6 {[%clk 0:00:44]}  Qxd7 {[%clk 0:00:07]} 58. Ne5+ {[%clk 0:00:44]}  Ke7 {[%clk 0:00:07]} 59. Nxd7 {[%clk 0:00:43]}  Kxd7 {[%clk 0:00:07]} 60. Kg5 {[%clk 0:00:42]}  Bc3 {[%clk 0:00:08]} 61. Kg6 {[%clk 0:00:40]}  Ke7 {[%clk 0:00:08]} 62. h7 {[%clk 0:00:38]}  b5 {[%clk 0:00:07]} 63. axb5 {[%clk 0:00:38]}  axb5 {[%clk 0:00:08]} 64. Kg5 {[%clk 0:00:38]}  Kf7 {[%clk 0:00:07]} 65. Kf4 {[%clk 0:00:38]}  c4 {[%clk 0:00:07]} 66. bxc4 {[%clk 0:00:38]}  bxc4 {[%clk 0:00:08]} 67. Ke4 {[%clk 0:00:39]}  Bf6 {[%clk 0:00:08]} 68. Ke3 {[%clk 0:00:37]}  c3 {[%clk 0:00:08]} 69. Kd3 {[%clk 0:00:37]}  Kg7 {[%clk 0:00:08]} 70. h8=Q+ {[%clk 0:00:37]}  Kxh8 {[%clk 0:00:08]} 71. Kc2 {[%clk 0:00:38]}  Kg7 {[%clk 0:00:09]} 72. Kb3 {[%clk 0:00:39]}  Kh6 {[%clk 0:00:09]} 73. Kc2 {[%clk 0:00:40]}  Kg5 {[%clk 0:00:09]} 74. Kd3 {[%clk 0:00:41]}  Kxf5 {[%clk 0:00:10]} 75. Kc2 {[%clk 0:00:41]}  Ke6 {[%clk 0:00:10]} 76. Kb3 {[%clk 0:00:42]}  Kd6 {[%clk 0:00:11]} 77. Kc2 {[%clk 0:00:43]}  Kd5 {[%clk 0:00:11]} 78. Kd3 {[%clk 0:00:44]}  Kc5 {[%clk 0:00:11]} 79. Kc2 {[%clk 0:00:45]}  Kc4 {[%clk 0:00:12]} 80. Kd1 {[%clk 0:00:46]}  Kb3 {[%clk 0:00:12]} 81. Kc1 {[%clk 0:00:47]}  c2 {[%clk 0:00:12]} 82. Kd2 {[%clk 0:00:47]}  Bg5+ {[%clk 0:00:12]} 83. Ke2 {[%clk 0:00:48]}  c1=Q {[%clk 0:00:12]} 84. Kf3 {[%clk 0:00:48]}  Qf4+ {[%clk 0:00:12]} 85. Kg2 {[%clk 0:00:49]}  Kc4 {[%clk 0:00:12]} 86. Kh3 {[%clk 0:00:50]}  Kd3 {[%clk 0:00:12]} 87. Kg2 {[%clk 0:00:50]}  Qg4+ {[%clk 0:00:12]} 88. Kf1 {[%clk 0:00:50]}  Qe2+ {[%clk 0:00:11]} 89. Kg1 {[%clk 0:00:50]}  Ke3 {[%clk 0:00:10]} 90. Kh1 {[%clk 0:00:51]}  Kf3 {[%clk 0:00:11]} 91. Kg1 {[%clk 0:00:52]}  Qg2# {[%clk 0:00:11]} 0-1


[Site "https://www.chess.com"]